fUST/lending_fUST_20251130
["ID","MTS","AMOUNT","RATE_DAILY","PERIOD"]
[395136367,1764467483802,500.0,9.926e-05,2]
[395136368,1764467483849,500.0,9.926e-05,2]
[395136369,1764467483882,571.44725571,9.926e-05,2]
[395136370,1764467483925,92.3624857,9.926e-05,2]
[395136371,1764467488776,183.47112961,9.827e-05,2]
[395136372,1764467496585,407.6375143,9.827e-05,2]
[395136373,1764467504560,306.21682977,9.827e-05,2]
[395136374,1764467512367,230.87294003,9.827e-05,2]
[395136375,1764467538139,-300.0,9.925e-05,2]
[395136376,1764467540466,3988.7310359,9.553e-05,2]
[395136377,1764467556743,197.42193015,9.921e-05,2]
[395136378,1764467571824,1200.0,9.925e-05,2]
[395136379,1764467582526,300.0,9.925e-05,2]
[395136380,1764467592030,1439.65462678,9.827e-05,2]
[395136381,1764467642233,300.0,9.925e-05,2]
[395136382,1764467694244,-500.0,9.925e-05,2]
[395136383,1764467694264,-500.0,9.925e-05,2]
[395136384,1764467694285,-367.73275744,9.925e-05,2]
[395136385,1764467696472,-132.26724256,9.925e-05,2]
[395136386,1764467696493,-220.12304131,9.925e-05,2]
[395136387,1764467698480,-279.87695869,9.925e-05,2]
[395136388,1764467698501,-500.0,9.925e-05,2]
[395136389,1764467698522,-220.12304131,9.925e-05,2]
[395136390,1764467701122,-279.87695869,9.925e-05,2]
[395136391,1764467701145,-327.34023955,9.925e-05,2]
[395136393,1764467702120,300.0,9.924e-05,2]
[395136394,1764467704035,886.35163123,9.232e-05,2]
[395136395,1764467704467,-172.65976045,9.925e-05,2]
[395136396,1764467704494,-44.67642743,9.925e-05,2]
[395136397,1764467705662,-455.32357257,9.925e-05,2]
[395136398,1764467705685,-44.67642743,9.925e-05,2]
[395136399,1764467707655,-455.32357257,9.925e-05,2]
[395136400,1764467707679,-44.67642743,9.925e-05,2]
[395136401,1764467708558,1200.0,9.924e-05,2]
[395136402,1764467762554,300.0,9.925e-05,2]
[395136403,1764467775475,818.98926571,8.907e-05,2]
[395136404,1764467776117,818.98926571,9.798e-05,2]
[395136405,1764467822738,300.0,9.925e-05,2]
[395136406,1764467838308,1000.0,0.00011,3]
[395136407,1764467872100,199.0,9.925e-05,2]
[395136408,1764467882232,300.0,9.925e-05,2]
[395136409,1764467888831,1002.27,0.0002,30]
[395136410,1764467942267,300.0,9.925e-05,2]
[395136411,1764468000951,759.87465943,9.232e-05,2]
[395136412,1764468002139,300.0,9.925e-05,2]
[395136413,1764468008450,252.0,9.925e-05,2]
[395136414,1764468011688,504.48022154,9.925e-05,2]
[395136415,1764468015881,321.24730345,9.925e-05,2]
[395136416,1764468020645,248.71531821,9.925e-05,2]
[395136417,1764468062391,300.0,9.925e-05,2]
[395136418,1764468122855,300.0,9.925e-05,2]
[395136420,1764468182385,300.0,9.925e-05,2]
[395136421,1764468242649,300.0,9.925e-05,2]
[395136425,1764468271443,213.1309963,9.525e-05,2]
[395136426,1764468273886,383.25215755,9.525e-05,2]
[395136427,1764468300127,911.97114694,9.232e-05,2]
[395136428,1764468306560,210.72251691,9.232e-05,2]
[395136429,1764468310191,248.71531821,9.921e-05,2]
[395136430,1764468362584,300.0,9.925e-05,2]
[395136431,1764468365731,8328.60101794,9.827e-05,2]
[395136432,1764468365755,10000.01,9.827e-05,2]
[395136433,1764468365780,10000.01,9.827e-05,2]
[395136434,1764468365807,10000.01,9.827e-05,2]
[395136435,1764468365835,10000.01,9.827e-05,2]
[395136436,1764468365863,10000.01,9.827e-05,2]
[395136437,1764468365888,10000.01,9.827e-05,2]
[395136438,1764468365914,10000.01,9.827e-05,2]
[395136439,1764468365938,10000.01,9.827e-05,2]
[395136440,1764468365962,10000.01,9.827e-05,2]
[395136441,1764468392215,500.0,9.826e-05,2]
[395136442,1764468392302,155.52231985,9.826e-05,2]
[395136443,1764468393002,239.08237814,9.826e-05,2]
[395136444,1764468393722,500.0,9.826e-05,2]
[395136445,1764468393797,500.0,9.826e-05,2]
[395136446,1764468393870,500.0,9.826e-05,2]
[395136447,1764468393959,500.0,9.826e-05,2]
[395136448,1764468394017,533.80788722,9.826e-05,2]
[395136449,1764468400316,-344.1135578,9.827e-05,2]
[395136450,1764468402413,-198.70537683,9.827e-05,2]
[395136451,1764468404716,-301.29462317,9.827e-05,2]
[395136453,1764468406379,-198.70537683,9.827e-05,2]
[395136454,1764468407883,-155.88737735,9.827e-05,2]
[395136455,1764468409321,-198.70537683,9.827e-05,2]
[395136456,1764468411404,-301.29462317,9.827e-05,2]
[395136457,1764468411626,198.70537683,9.826e-05,2]
[395136458,1764468411967,527.98411083,9.826e-05,2]
[395136459,1764468413517,-341.6166106,9.827e-05,2]
[395136460,1764468415092,198.70537683,9.826e-05,2]
[395136461,1764468417506,-155.88737735,9.827e-05,2]
[395136462,1764468422247,300.0,9.826e-05,2]
[395136463,1764468429411,301.29462317,9.826e-05,2]
[395136464,1764468431128,-718.20669204,9.827e-05,2]
[395136465,1764468432850,301.29462317,9.826e-05,2]
[395136466,1764468444488,-274.53877537,9.827e-05,2]
[395136467,1764468482319,300.0,9.826e-05,2]
[395136469,1764468543196,300.0,9.826e-05,2]
[395136470,1764468570109,-21202.27334565,9.827e-05,2]
[395136473,1764468602106,300.0,9.826e-05,2]
[395136474,1764468605733,231.0,9.827e-05,2]
[395136499,1764468632566,-17039.31731572,9.827e-05,2]
[395136512,1764468638631,-3291.06443375,9.827e-05,2]
[395136514,1764468638686,-6198.9802446,9.827e-05,2]
[395136516,1764468638697,-9904.85776516,9.827e-05,2]
[395136518,1764468638708,-22562.70210381,9.827e-05,2]
[395136520,1764468638721,-21015.40392329,9.827e-05,2]
[395136522,1764468638732,-6507.69598706,9.827e-05,2]
[395136697,1764468640681,-1086.86268639,9.827e-05,2]
[395136700,1764468640692,-614.8492,9.827e-05,2]
[395136727,1764468640944,-2e-08,9.827e-05,2]
[395137050,1764468643979,-768.90923381,9.827e-05,2]
[395137247,1764468654581,500.0,9.729e-05,2]
[395137248,1764468662256,300.0,9.826e-05,2]
[395137249,1764468702558,634.609,9.631e-05,2]
[395137250,1764468722269,300.0,9.826e-05,2]
[395137251,1764468770360,258.96926921,9.729e-05,2]
[395137252,1764468771298,500.0,9.826e-05,2]
[395137253,1764468771335,500.0,9.826e-05,2]
[395137254,1764468771365,500.0,9.826e-05,2]
[395137255,1764468771394,594.74396013,9.826e-05,2]
[395137256,1764468772470,1200.0,9.826e-05,2]
[395137257,1764468782343,300.0,9.826e-05,2]
[395137258,1764468803523,500.0,9.826e-05,2]
[395137259,1764468803561,500.0,9.826e-05,2]
[395137260,1764468803592,500.0,9.826e-05,2]
[395137261,1764468803622,178.5593597,9.826e-05,2]
[395137262,1764468803661,305.37434158,9.826e-05,2]
[395137264,1764468902196,300.0,9.826e-05,2]
[395137265,1764468907648,1200.0,9.826e-05,2]
[395137266,1764468913773,184.43031152,9.827e-05,2]
[395137267,1764468915557,248.71531821,9.827e-05,2]
[395137268,1764468962348,300.0,9.826e-05,2]
[395137269,1764468963807,476.96926921,9.729e-05,2]
[395137270,1764469022761,300.0,9.826e-05,2]
[395137271,1764469082452,300.0,9.826e-05,2]
[395137272,1764469142319,300.0,9.826e-05,2]
[395137273,1764469202014,300.0,9.826e-05,2]
[395137274,1764469205766,231.0,9.827e-05,2]
[395137275,1764469210717,21.24817044,9.827e-05,2]
[395137276,1764469210740,227.46714777,9.827e-05,2]
[395137277,1764469262865,300.0,9.826e-05,2]
[395137280,1764469302557,598.66,9.631e-05,2]
[395137305,1764469322561,300.0,9.826e-05,2]
[395137306,1764469328211,643.24077568,9.764e-05,2]
[395137308,1764469398546,8158.10922432,9.727e-05,2]
[395137309,1764469398584,10000.01,9.727e-05,2]
[395137310,1764469398620,10000.01,9.727e-05,2]
[395137311,1764469398652,10000.01,9.727e-05,2]
[395137312,1764469398684,10000.01,9.727e-05,2]
[395137313,1764469398717,10000.01,9.727e-05,2]
[395137314,1764469398753,10000.01,9.727e-05,2]
[395137315,1764469398787,10000.01,9.727e-05,2]
[395137316,1764469398814,10000.01,9.727e-05,2]
[395137317,1764469398845,10000.01,9.727e-05,2]
[395137318,1764469408210,6347.1013594,9.672e-05,2]
[395137319,1764469419351,-1144.11811366,9.727e-05,2]
[395137320,1764469421703,-179.28121561,9.727e-05,2]
[395137321,1764469423698,-219.13413592,9.727e-05,2]
[395137322,1764469425194,-209.28303073,9.727e-05,2]
[395137323,1764469428345,-302.0,9.727e-05,2]
[395137324,1764469430430,-320.71878437,9.727e-05,2]
[395137325,1764469432481,1409.69838226,9.63e-05,2]
[395137326,1764469433200,-644.89951271,9.727e-05,2]
[395137327,1764469438251,-500.0,9.727e-05,2]
[395137328,1764469440105,500.0,9.63e-05,2]
[395137329,1764469441427,-158.28363311,9.727e-05,2]
[395137330,1764469442325,300.0,9.726e-05,2]
[395137331,1764469445551,-238.7095717,9.727e-05,2]
[395137332,1764469449210,-278.37449568,9.727e-05,2]
[395137333,1764469452385,-374.78650053,9.727e-05,2]
[395137334,1764469455220,465.61829706,9.63e-05,2]
[395137335,1764469455999,-263.0,9.727e-05,2]
[395137336,1764469458065,-157.46333992,9.727e-05,2]
[395137337,1764469459831,-400.94864858,9.727e-05,2]
[395137338,1764469463022,977.59196128,9.63e-05,2]
[395137339,1764469463045,596.03237485,9.63e-05,2]
[395137340,1764469464453,-500.00000002,9.727e-05,2]
[395137341,1764469466552,-289.0,9.727e-05,2]
[395137342,1764469467980,-420.71878439,9.727e-05,2]
[395137343,1764469470774,-302.0,9.727e-05,2]
[395137344,1764469471818,162.93747306,9.726e-05,2]
[395137345,1764469471916,500.0,9.726e-05,2]
[395137346,1764469472936,-302.0,9.727e-05,2]
[395137347,1764469473104,500.0,9.726e-05,2]
[395137348,1764469473142,500.0,9.726e-05,2]
[395137349,1764469473171,500.0,9.726e-05,2]
[395137350,1764469473238,500.0,9.726e-05,2]
[395137351,1764469473267,250.18701639,9.726e-05,2]
[395137352,1764469473306,500.0,9.726e-05,2]
[395137353,1764469473578,386.28978871,9.726e-05,2]
[395137354,1764469473614,500.0,9.726e-05,2]
[395137355,1764469473687,500.0,9.726e-05,2]
[395137356,1764469473763,454.29999999,9.726e-05,2]
[395137357,1764469474435,-909.28303073,9.727e-05,2]
[395137358,1764469485564,4150.263347,9.63e-05,2]
[395137359,1764469485586,4324.35573597,9.63e-05,2]
[395137360,1764469489771,154.03219874,9.726e-05,2]
[395137361,1764469498718,771.10412403,9.232e-05,2]
[395137362,1764469502217,300.0,9.726e-05,2]
[395137364,1764469507683,4450.51794126,9.63e-05,2]
[395137365,1764469507709,5549.49205874,9.63e-05,2]
[395137366,1764469507743,690.0,9.726e-05,2]
[395137367,1764469529867,3760.51794126,9.63e-05,2]
[395137368,1764469529891,6239.49205874,9.63e-05,2]
[395137369,1764469536121,-1600.65365454,9.727e-05,2]
[395137370,1764469552001,3760.51794126,9.63e-05,2]
[395137371,1764469552024,6239.49205874,9.63e-05,2]
[395137372,1764469562377,300.0,9.726e-05,2]
[395137373,1764469574473,3460.51794126,9.63e-05,2]
[395137374,1764469574502,6539.49205874,9.63e-05,2]
[395137375,1764469596882,3460.51794126,9.63e-05,2]
[395137376,1764469596908,6539.49205874,9.63e-05,2]
[395137377,1764469619630,3460.51794126,9.63e-05,2]
[395137378,1764469619652,9214.85367285,9.63e-05,2]
[395137379,1764469622336,300.0,9.726e-05,2]
[395137380,1764469625087,-192.45546316,9.727e-05,2]
[395137381,1764469629114,-2336.16265218,9.727e-05,2]
[395137382,1764469630072,-182.1438644,9.727e-05,2]
[395137384,1764469641962,485.15632715,9.63e-05,2]
[395137385,1764469641984,10000.01,9.63e-05,2]
[395137386,1764469642005,1164.37817632,9.63e-05,2]
[395137387,1764469644781,808.85603361,9.627e-05,2]
[395137388,1764469664242,8026.77579007,9.63e-05,2]
[395137389,1764469664266,3622.7687134,9.63e-05,2]
[395137391,1764469672026,1200.0,9.726e-05,2]
[395137392,1764469682532,500.0,9.726e-05,2]
[395137393,1764469682598,500.0,9.726e-05,2]
[395137394,1764469682654,500.0,9.726e-05,2]
[395137395,1764469682711,250.0,9.726e-05,2]
[395137396,1764469682757,500.0,9.726e-05,2]
[395137397,1764469683810,300.0,9.726e-05,2]
[395137398,1764469686430,2627.2412866,9.63e-05,2]
[395137399,1764469686453,9336.00381979,9.63e-05,2]
[395137400,1764469687818,500.0,9.726e-05,2]
[395137401,1764469687848,164.00618021,9.726e-05,2]
[395137402,1764469687873,135.99381979,9.726e-05,2]
[395137403,1764469687909,500.0,9.726e-05,2]
[395137404,1764469687941,500.0,9.726e-05,2]
[395137405,1764469694916,371.97175886,9.63e-05,2]
[395137406,1764469703209,500.0,9.726e-05,2]
[395137407,1764469703262,500.0,9.726e-05,2]
[395137408,1764469703458,500.0,9.726e-05,2]
[395137409,1764469703493,500.0,9.726e-05,2]
[395137410,1764469703533,500.0,9.726e-05,2]
[395137411,1764469703563,500.0,9.726e-05,2]
[395137412,1764469703593,500.0,9.726e-05,2]
[395137413,1764469703630,500.0,9.726e-05,2]
[395137414,1764469703660,500.0,9.726e-05,2]
[395137415,1764469703694,500.0,9.726e-05,2]
[395137416,1764469703727,500.0,9.726e-05,2]
[395137417,1764469703762,500.0,9.726e-05,2]
[395137418,1764469703795,500.0,9.726e-05,2]
[395137419,1764469703832,500.0,9.726e-05,2]
[395137420,1764469703862,211.69740087,9.726e-05,2]
[395137421,1764469703897,500.0,9.726e-05,2]
[395137422,1764469703929,500.0,9.726e-05,2]
[395137423,1764469703959,280.34702048,9.726e-05,2]
[395137424,1764469703986,219.65297952,9.726e-05,2]
[395137425,1764469704017,500.0,9.726e-05,2]
[395137426,1764469704054,500.0,9.726e-05,2]
[395137427,1764469704097,500.0,9.726e-05,2]
[395137428,1764469704126,500.0,9.726e-05,2]
[395137429,1764469704155,500.0,9.726e-05,2]
[395137430,1764469704191,500.0,9.726e-05,2]
[395137431,1764469704220,500.0,9.726e-05,2]
[395137432,1764469704254,500.0,9.726e-05,2]
[395137433,1764469704292,500.0,9.726e-05,2]
[395137434,1764469704332,500.0,9.726e-05,2]
[395137435,1764469704367,500.0,9.726e-05,2]
[395137436,1764469704410,500.0,9.726e-05,2]
[395137437,1764469704444,500.0,9.726e-05,2]
[395137438,1764469710039,3280.35702048,9.63e-05,2]
[395137439,1764469710061,8369.18748299,9.63e-05,2]
[395137441,1764469715582,500.0,9.726e-05,2]
[395137442,1764469715630,220.39122657,9.726e-05,2]
[395137443,1764469715660,500.0,9.726e-05,2]
[395137444,1764469715705,500.0,9.726e-05,2]
[395137445,1764469715745,500.0,9.726e-05,2]
[395137446,1764469715792,500.0,9.726e-05,2]
[395137447,1764469715830,500.0,9.726e-05,2]
[395137451,1764469729368,500.0,9.726e-05,2]
[395137452,1764469729408,500.0,9.726e-05,2]
[395137453,1764469729464,500.0,9.726e-05,2]
[395137454,1764469729521,500.0,9.726e-05,2]
[395137455,1764469729577,488.51574834,9.726e-05,2]
[395137456,1764469730733,500.0,9.726e-05,2]
[395137457,1764469730762,500.0,9.726e-05,2]
[395137458,1764469730796,500.0,9.726e-05,2]
[395137459,1764469730825,500.0,9.726e-05,2]
[395137460,1764469730854,156.33935849,9.726e-05,2]
[395137461,1764469730888,500.0,9.726e-05,2]
[395137462,1764469730923,457.6709644,9.726e-05,2]
[395137463,1764469730955,500.0,9.726e-05,2]
[395137464,1764469730985,500.0,9.726e-05,2]
[395137465,1764469731024,177.0927022,9.726e-05,2]
[395137466,1764469731046,211.52667984,9.726e-05,2]
[395137467,1764469742281,300.0,9.726e-05,2]
[395137468,1764469744431,500.0,9.726e-05,2]
[395137469,1764469744461,500.0,9.726e-05,2]
[395137470,1764469744490,518.29388051,9.726e-05,2]
[395137471,1764469744520,500.0,9.726e-05,2]
[395137472,1764469744553,517.42185769,9.726e-05,2]
[395137473,1764469747574,500.0,9.726e-05,2]
[395137474,1764469747796,500.0,9.726e-05,2]
[395137475,1764469747831,500.0,9.726e-05,2]
[395137476,1764469752086,-26735.0923981,9.727e-05,2]
[395137477,1764469752119,-18768.23852751,9.727e-05,2]
[395137478,1764469754093,-208653.50451759,9.727e-05,2]
[395137479,1764469757573,500.0,9.726e-05,2]
[395137480,1764469757610,221.16389062,9.726e-05,2]
[395137481,1764469757646,500.0,9.726e-05,2]
[395137482,1764469757685,500.0,9.726e-05,2]
[395137483,1764469757716,500.0,9.726e-05,2]
[395137484,1764469757757,397.31007031,9.726e-05,2]
[395137485,1764469757786,500.0,9.726e-05,2]
[395137486,1764469757820,500.0,9.726e-05,2]
[395137487,1764469757857,155.98055781,9.726e-05,2]
[395137488,1764469762070,-33887.67061595,9.727e-05,2]
[395137489,1764469762097,-2400.37187958,9.727e-05,2]
[395137491,1764469775109,1678.31306322,9.63e-05,2]
[395137492,1764469775130,2926.7861637,9.63e-05,2]
[395137493,1764469802004,300.0,9.726e-05,2]
[395137494,1764469804161,186.03428632,9.726e-05,2]
[395137495,1764469804642,230.0,9.727e-05,2]
[395137498,1764469816316,248.71531821,9.727e-05,2]
[395137499,1764469816457,500.0,9.726e-05,2]
[395137500,1764469816490,500.0,9.726e-05,2]
[395137501,1764469816521,500.0,9.726e-05,2]
[395137502,1764469816549,500.0,9.726e-05,2]
[395137503,1764469816582,500.0,9.726e-05,2]
[395137504,1764469816611,532.74083617,9.726e-05,2]
[395137505,1764469816641,500.0,9.726e-05,2]
[395137506,1764469816675,500.0,9.726e-05,2]
[395137507,1764469816727,500.0,9.726e-05,2]
[395137508,1764469816756,268.84225,9.727e-05,2]
[395137509,1764469818765,1306.8911456,9.63e-05,2]
[395137510,1764469818790,5737.55413095,9.63e-05,2]
[395137511,1764469823671,464.05623114,9.726e-05,2]
[395137512,1764469825486,500.0,9.726e-05,2]
[395137513,1764469825563,500.0,9.726e-05,2]
[395137514,1764469825841,500.0,9.726e-05,2]
[395137515,1764469825887,300.0,9.726e-05,2]
[395137516,1764469826924,1998.39963791,9.63e-05,2]
[395137517,1764469826947,4001.60036209,9.63e-05,2]
[395137527,1764469831684,-22814.5515614,9.727e-05,2]
[395137528,1764469835310,800.0,9.659e-05,2]
[395137546,1764469837898,-4404.5433117,9.727e-05,2]
[395137548,1764469837910,-14792.26899724,9.727e-05,2]
[395137554,1764469837957,-4114.16,9.727e-05,2]
[395137556,1764469837968,-23322.64253795,9.727e-05,2]
[395137562,1764469838015,-3484.07439681,9.727e-05,2]
[395137720,1764469839855,-594.4003059,9.727e-05,2]
[395137740,1764469840041,-2e-08,9.727e-05,2]
[395137742,1764469840051,-634.39799675,9.727e-05,2]
[395137745,1764469840064,-1242.57155899,9.727e-05,2]
[395137747,1764469840080,-8011.31317701,9.727e-05,2]
[395137750,1764469840091,-1525.57541363,9.727e-05,2]
[395137752,1764469840101,-25416.18009161,9.727e-05,2]
[395137754,1764469840112,-1595.8,9.727e-05,2]
[395137966,1764469842096,5198.40963791,9.63e-05,2]
[395137969,1764469842119,6165.6889092,9.63e-05,2]
[395138026,1764469842856,-15253.32125798,9.727e-05,2]
[395138028,1764469842868,-5533.5400021,9.727e-05,2]
[395138035,1764469842916,-9640.72214699,9.727e-05,2]
[395138131,1764469849833,3834.3210908,9.63e-05,2]
[395138132,1764469849856,3312.76709963,9.63e-05,2]
[395138134,1764469870630,-520.35907167,9.63e-05,2]
[395138135,1764469872053,-381.53666008,9.63e-05,2]
[395138136,1764469872937,302.0,9.534e-05,2]
[395138137,1764469873475,491.78659567,8.907e-05,2]
[395138138,1764469874012,-302.06583249,9.63e-05,2]
[395138139,1764469876805,-474.5168464,9.63e-05,2]
[395138140,1764469878830,-650.78971398,9.63e-05,2]
[395138141,1764469880909,-195.41222399,9.63e-05,2]
[395138142,1764469882342,-302.0,9.63e-05,2]
[395138143,1764469884256,-320.8709264,9.63e-05,2]
[395138144,1764469887021,-282.66381212,9.63e-05,2]
[395138145,1764469895222,4657.5115735,9.534e-05,2]
[395138146,1764469902780,278.56320091,9.534e-05,2]
[395138147,1764469914176,-282.6638121,9.63e-05,2]
[395138148,1764469946175,197.98268224,9.534e-05,2]
[395138150,1764470047100,-144.94985312,9.63e-05,2]
[395138151,1764470047402,-289.89970624,9.63e-05,2]
[395138152,1764470047464,-5144.36359763,9.63e-05,2]
[395138153,1764470047601,-4275.84698989,9.63e-05,2]
[395138171,1764470060327,300.0,9.628e-05,2]
[395138172,1764470062895,-300.0,9.725e-05,2]
[395138173,1764470075386,318.99293034,9.65e-05,2]
[395138174,1764470082262,2791.68162759,9.629e-05,2]
[395138175,1764470101807,300.0,9.725e-05,2]
[395138176,1764470102421,300.0,9.725e-05,2]
[395138177,1764470104809,227.0,9.725e-05,2]
[395138178,1764470108784,1200.0,9.725e-05,2]
[395138191,1764470162678,300.0,9.725e-05,2]
[395138194,1764470217292,7673.01,9.726e-05,2]
[395138195,1764470217314,10000.01,9.726e-05,2]
[395138196,1764470217334,10000.01,9.726e-05,2]
[395138197,1764470217355,10000.01,9.726e-05,2]
[395138198,1764470217376,10000.01,9.726e-05,2]
[395138199,1764470217396,2326.95,9.726e-05,2]
[395138200,1764470220808,396.99204678,8.907e-05,2]
[395138201,1764470222320,300.0,9.725e-05,2]
[395138210,1764470271424,500.0,9.726e-05,2]
[395138211,1764470272174,1200.0,9.725e-05,2]
[395138212,1764470282761,300.0,9.725e-05,2]
[395138213,1764470312655,500.0,9.725e-05,2]
[395138214,1764470312684,500.0,9.725e-05,2]
[395138215,1764470312712,500.0,9.725e-05,2]
[395138216,1764470312748,605.95471541,9.725e-05,2]
[395138217,1764470312775,500.0,9.725e-05,2]
[395138218,1764470312805,532.30671198,9.725e-05,2]
[395138219,1764470312841,500.89117963,9.725e-05,2]
[395138220,1764470312873,500.0,9.725e-05,2]
[395138221,1764470312902,500.0,9.725e-05,2]
[395138222,1764470312931,336.9153462,9.725e-05,2]
[395138223,1764470312954,163.0846538,9.725e-05,2]
[395138224,1764470312982,500.0,9.725e-05,2]
[395138225,1764470313017,551.26250039,9.725e-05,2]
[395138226,1764470313045,500.0,9.725e-05,2]
[395138227,1764470313080,500.0,9.725e-05,2]
[395138228,1764470313112,500.0,9.725e-05,2]
[395138229,1764470313141,500.0,9.725e-05,2]
[395138230,1764470313187,500.0,9.725e-05,2]
[395138231,1764470313215,500.0,9.725e-05,2]
[395138232,1764470313256,500.0,9.725e-05,2]
[395138233,1764470313291,500.0,9.725e-05,2]
[395138234,1764470313320,500.0,9.725e-05,2]
[395138235,1764470313348,500.0,9.725e-05,2]
[395138236,1764470313390,638.66781711,9.725e-05,2]
[395138237,1764470313430,500.0,9.725e-05,2]
[395138238,1764470313470,500.0,9.725e-05,2]
[395138239,1764470313506,500.0,9.725e-05,2]
[395138240,1764470313534,500.0,9.725e-05,2]
[395138241,1764470313562,500.0,9.725e-05,2]
[395138242,1764470313607,500.0,9.725e-05,2]
[395138243,1764470313639,146.9950287,9.725e-05,2]
[395138244,1764470313662,353.0049713,9.725e-05,2]
[395138245,1764470313714,500.0,9.725e-05,2]
[395138246,1764470313744,500.0,9.725e-05,2]
[395138247,1764470313775,500.0,9.725e-05,2]
[395138248,1764470313810,289.47554042,9.725e-05,2]
[395138249,1764470313855,500.0,9.725e-05,2]
[395138250,1764470313887,500.0,9.725e-05,2]
[395138251,1764470313926,500.0,9.725e-05,2]
[395138252,1764470313961,500.0,9.725e-05,2]
[395138253,1764470313994,500.0,9.725e-05,2]
[395138254,1764470314024,500.0,9.725e-05,2]
[395138255,1764470314070,500.0,9.725e-05,2]
[395138256,1764470314101,500.0,9.725e-05,2]
[395138257,1764470314128,500.0,9.725e-05,2]
[395138258,1764470314177,500.0,9.725e-05,2]
[395138259,1764470314214,500.0,9.725e-05,2]
[395138260,1764470314260,286.28035319,9.725e-05,2]
[395138261,1764470314290,500.0,9.725e-05,2]
[395138262,1764470314318,500.0,9.725e-05,2]
[395138263,1764470314357,500.0,9.725e-05,2]
[395138264,1764470314389,500.0,9.725e-05,2]
[395138265,1764470314431,71.24913509,9.725e-05,2]
[395138266,1764470314455,428.75086491,9.725e-05,2]
[395138267,1764470314493,500.0,9.725e-05,2]
[395138268,1764470314532,500.0,9.725e-05,2]
[395138269,1764470314577,500.0,9.725e-05,2]
[395138270,1764470314662,500.0,9.725e-05,2]
[395138271,1764470314705,500.0,9.725e-05,2]
[395138272,1764470314734,500.0,9.725e-05,2]
[395138273,1764470314762,500.0,9.725e-05,2]
[395138274,1764470314798,500.0,9.725e-05,2]
[395138275,1764470314827,500.0,9.725e-05,2]
[395138276,1764470314866,500.0,9.725e-05,2]
[395138277,1764470314909,500.0,9.725e-05,2]
[395138278,1764470314939,500.0,9.725e-05,2]
[395138279,1764470314989,500.0,9.725e-05,2]
[395138280,1764470315026,500.0,9.725e-05,2]
[395138281,1764470315079,500.0,9.725e-05,2]
[395138282,1764470315115,500.0,9.725e-05,2]
[395138283,1764470315180,500.0,9.725e-05,2]
[395138284,1764470315224,500.0,9.725e-05,2]
[395138285,1764470315477,500.0,9.725e-05,2]
[395138286,1764470315531,71.25913509,9.725e-05,2]
[395138287,1764470315552,428.74086491,9.725e-05,2]
[395138288,1764470315604,598.53265242,9.725e-05,2]
[395138289,1764470317338,500.0,9.726e-05,2]
[395138292,1764470342470,300.0,9.726e-05,2]
[395138294,1764470398066,500.0,9.725e-05,2]
[395138295,1764470398100,500.0,9.725e-05,2]
[395138296,1764470398140,499.67033945,9.725e-05,2]
[395138297,1764470398170,500.0,9.725e-05,2]
[395138298,1764470398207,500.0,9.725e-05,2]
[395138299,1764470398239,500.0,9.725e-05,2]
[395138300,1764470398267,481.12260765,9.725e-05,2]
[395138301,1764470398295,500.0,9.725e-05,2]
[395138302,1764470398324,500.0,9.725e-05,2]
[395138303,1764470398360,305.24953341,9.725e-05,2]
[395138304,1764470398390,500.0,9.725e-05,2]
[395138305,1764470398429,500.0,9.725e-05,2]
[395138306,1764470398456,500.0,9.725e-05,2]
[395138307,1764470401357,300.0,9.724e-05,2]
[395138308,1764470402153,300.0,9.724e-05,2]
[395138309,1764470404993,230.0,9.726e-05,2]
[395138310,1764470405891,363.892,9.629e-05,2]
[395138311,1764470408910,1200.0,9.726e-05,2]